[Event "45th FIDE Womens Olympiad 2024"]
[Site "Budapest"]
[Date "2024.09.15"]
[Round "5.95"]
[White "Orian, Noga"]
[Black "Cooke, Suzie G."]
[Result "1/2-1/2"]
[ECO "D32"]
[WhiteElo "2187"]
[BlackElo "1941"]
[Annotator "TA"]
[PlyCount "106"]
[EventDate "2024.09.05"]
[EventType "team-tourn"]
[EventCountry "HUN"]
[SourceTitle "playchess.com"]
[Source "ChessBase"]
[SourceQuality "1"]
[WhiteTeam "Israel"]
[BlackTeam "Scotland"]
[WhiteTeamCountry "ISR"]
[BlackTeamCountry "SCO"]
[TimeControl "40/5400+30:1800+30"]

{[%evp 11,106,45,38,16,27,28,26,18,17,19,20,27,35,10,51,48,48,47,57,60,52,64,153,149,141,51,60,0,0,0,10,10,7,0,0,0,0,0,0,0,0,0,0,0,0,0,0,0,0,0,0,0,0,0,0,0,0,0,0,0,0,0,0,0,0,0,0,0,0,0,0,0,5,5,2383,2741,5073,2778,5608,4357,4134,0,0,0,0,0,0,0,0,0,0,0,0,0,0,0,0]} 1. d4 e6 2. c4 Nf6 3. Nf3 d5 4. Nc3 c5 5. cxd5 exd5 6. Bg5 Be6 7. Qa4+ Nc6 8. e3 Qb6 9. Bb5 {White has an edge.} Be7 10. O-O {Threatening dxc5.} O-O 11. Bxc6 bxc6 12. Qc2 (12. Qa3 $5) 12... c4 13. b3 cxb3 14. axb3 Rfb8 15. Nd2 Qd8 16. Na4 Ne4 {[#]} 17. Bxe7 $1 $16 ({But not} 17. Nxe4 Bxg5 18. Nxg5 Qxg5 $14) 17... Qxe7 18. Nc5 (18. Nxe4 $16 dxe4 19. Qxc6 (19. Qxe4 Qd8 $16)) 18... Nxc5 $14 19. Qxc5 ({White should play} 19. dxc5 $14 Rb5 20. Rfc1) 19... Qxc5 $11 20. dxc5 Rb5 21. Rfc1 a5 22. Ra4 d4 23. exd4 Bxb3 24. Nxb3 Rxb3 {[%mdl 4096] Endgame. KRR-KRR} 25. Kf1 Kf8 26. Re1 Rb2 27. g3 g6 28. h4 h5 29. Kg2 Rb3 30. Re3 Rb4 31. Rea3 {Strongly threatening Rxb4.} Rxa4 32. Rxa4 {KR-KR} Ke7 33. Kf3 Ke6 34. Ke4 f6 35. f3 {[%cal Bf2f3,Bf3g4,Bg4h5][%mdl 32]} Ra7 36. d5+ cxd5+ 37. Kd4 Ra6 38. g4 hxg4 39. fxg4 Ra7 40. Ra1 {aiming for Re1+.} a4 41. Re1+ Kd7 42. Kxd5 Ra6 {[%mdl 8192]} (42... a3 $11) 43. h5 $18 gxh5 44. gxh5 f5 {[#]} 45. Rg1 $1 Rh6 46. Rg7+ $2 (46. c6+ $1 $18 Kd8 47. Rg8+ Kc7 48. Rg7+ Kd8 49. Kc5) 46... Kd8 $11 {The position is equal.} 47. c6 {Kc5 is the strong threat.} Rxh5 48. Kd6 {[%cal Rg7g8]} Rh6+ 49. Kc5 {White threatens Kb6 and mate.} Rh1 50. Rg8+ Kc7 51. Rg7+ Kc8 52. Rg8+ Kc7 53. Rg7+ Kc8 {Weighted Error Value: White=0.18 (very precise) /Black=0.06 (flawless) .  Loses game:     	---       	Black=1      Mistake:       	White=2     	Black=1      Inaccurate:     	---       	Black=2      OK:         	White=15    	Black=16     Best:        	White=2     	Black=4      Strong:       	White=1     	---} 1/2-1/2

[Event "45th FIDE Womens Olympiad 2024"]
[Site "Budapest"]
[Date "2024.09.15"]
[Round "5.96"]
[White "Giulian, Rosemary A"]
[Black "Kochavi, Dana"]
[Result "0-1"]
[ECO "B22"]
[WhiteElo "1922"]
[BlackElo "2009"]
[Annotator "TA"]
[PlyCount "90"]
[EventDate "2024.09.05"]
[EventType "team-tourn"]
[EventCountry "HUN"]
[SourceTitle "playchess.com"]
[Source "ChessBase"]
[SourceQuality "1"]
[WhiteTeam "Scotland"]
[BlackTeam "Israel"]
[WhiteTeamCountry "SCO"]
[BlackTeamCountry "ISR"]
[TimeControl "40/5400+30:1800+30"]

{[%evp 16,90,34,10,23,10,20,10,13,-12,0,-17,0,1,18,23,16,5,24,31,24,23,30,-73,-82,-78,-53,-133,-38,-58,-66,-59,-33,-50,-71,-76,-38,-102,-94,-130,-79,-122,-81,-83,-85,-108,-92,-89,-75,-127,-129,-131,-110,-145,-128,-165,-176,-242,-244,-239,-233,-269,-239,-810,-792,-876,-849,-844,-833,-1595,-984,-1109,-1529,-4722,-735,-1689,-606]} 1. e4 c5 2. c3 Nf6 3. e5 Nd5 4. Nf3 Nc6 5. d4 cxd4 6. cxd4 d6 7. Bc4 Nb6 8. Bb5 Bd7 9. Nc3 dxe5 10. dxe5 g6 11. O-O Bg7 {The position is equal.} 12. Bf4 O-O 13. Re1 Be6 14. Bxc6 bxc6 15. Qc1 Bg4 16. Ng5 h6 17. Nge4 {A dynamic duo of knights.} g5 18. Bg3 Nc4 {[#]} 19. Nxg5 hxg5 $17 20. Qxg5 Be6 21. b3 {[#]} (21. Bf4 $15) 21... Nb6 ({Reject} 21... Qd2 $6 22. Qxd2 Nxd2 23. Bf4 $11) (21... Qa5 $1 $17 22. Qc1 Nd6 (22... Nxe5 $2 {loses.} 23. Bxe5 f6 24. Bc7 $18) 23. exd6 Qxc3 24. dxe7 Rfe8) 22. Bf4 Nd5 23. Rad1 f6 24. exf6 exf6 25. Qg3 Bf5 (25... Re8 $5) 26. Ne2 (26. Nxd5 $15 cxd5 27. h4) 26... Re8 27. Nd4 Rxe1+ 28. Rxe1 Nxf4 29. Qxf4 (29. Nxf5 $2 {too greedy.} Ne2+ 30. Kh1 Nxg3+ $19) 29... Bd7 30. h4 Qb8 {Against Qd6} 31. Qc1 Qb4 {Prevents Re7.} 32. Nf3 (32. Rd1 $142) 32... Rc8 33. Rd1 Be6 34. Rd4 Qf8 35. Qd2 Bd5 36. Ne1 (36. Rg4 $142) 36... f5 $19 37. Ra4 Qe7 38. Nc2 Rd8 {[%cal Od5b3] Threatens to win with ...Bxb3!} 39. Qf4 $2 {[#]} (39. Ne3 Bxb3 40. Rxa7 Rxd2 41. Rxe7) 39... Bxb3 $1 {[%mdl 512] Black is clearly winning.} 40. Ne3 {Against Rd1+} (40. Rxa7 Qxa7) 40... Bxa4 41. Qxa4 {[#]} f4 $1 42. Nf5 (42. Ng4 Qe6) 42... Qe6 43. Nxg7 Kxg7 44. Qxa7+ Rd7 45. Qa5 Qf6 {Weighted Error Value: White=0.82/Black=0.41.  Mistake:       	White=6     	Black=1      Inaccurate:     	White=3     	Black=3      OK:         	White=6     	Black=12     Best:        	---       	Black=1      Brilliant:      	---       	Black=1} 0-1

[Event "45th FIDE Womens Olympiad 2024"]
[Site "Budapest"]
[Date "2024.09.15"]
[Round "5.97"]
[White "Ouellet, Maili-Jade"]
[Black "Dornbusch, Tatiana"]
[Result "1/2-1/2"]
[ECO "D57"]
[WhiteElo "2318"]
[BlackElo "2212"]
[Annotator "RC"]
[PlyCount "124"]
[EventDate "2024.09.05"]
[EventType "team-tourn"]
[EventCountry "HUN"]
[SourceTitle "playchess.com"]
[Source "ChessBase"]
[SourceQuality "1"]
[WhiteTeam "Canada"]
[BlackTeam "Monaco"]
[WhiteTeamCountry "CAN"]
[BlackTeamCountry "MNC"]
[TimeControl "40/5400+30:1800+30"]

1. d4 d5 2. c4 e6 3. Nc3 Be7 4. Nf3 Nf6 5. Bg5 h6 6. Bh4 O-O 7. e3 Ne4 8. Bxe7 Qxe7 9. cxd5 Nxc3 10. bxc3 exd5 11. Bd3 c5 12. O-O Nc6 13. h3 Be6 14. Re1 Rfd8 15. Rb1 Rac8 16. Qa4 b6 17. e4 cxd4 18. cxd4 dxe4 19. Bxe4 Na5 20. d5 Bd7 21. Qd4 Qc5 22. Qe5 Nc4 23. Qf4 Qd6 24. Qxd6 Nxd6 25. Bd3 Rc5 26. Rbd1 Ba4 27. Rd2 Kf8 28. Bf1 Ne8 29. Re4 Bb5 30. Bxb5 Rxb5 31. Red4 Rd6 32. a4 Rc5 33. Ne5 Nf6 34. Nc6 Rcxd5 35. Rxd5 Rxd5 36. Rb2 Rd7 37. a5 Nd5 38. axb6 axb6 39. Rb5 f6 40. g3 Kf7 41. Kg2 Rd6 42. Nd4 Nc7 43. Rb4 b5 44. h4 Rd5 45. Ne2 Na6 46. Rb2 b4 47. Nf4 Rd4 48. Kf3 g5 49. hxg5 hxg5 50. Ke3 Rc4 51. Nd3 Nc7 52. Ne1 Ke6 53. Nc2 Nd5+ 54. Kd3 Rc3+ 55. Kd2 Rc4 56. Kd3 Rc3+ 57. Kd2 b3 58. Rxb3 Rxb3 59. Nd4+ Ke5 60. Nxb3 Ke4 61. Ke2 Nc3+ 62. Kf1 Nd5 1/2-1/2

[Event "45th FIDE Womens Olympiad 2024"]
[Site "Budapest"]
[Date "2024.09.15"]
[Round "5.98"]
[White "Zvereva, Marija"]
[Black "Li, Yunshan"]
[Result "0-1"]
[ECO "B13"]
[WhiteElo "2035"]
[BlackElo "2268"]
[Annotator "TA"]
[PlyCount "94"]
[EventDate "2024.09.05"]
[EventType "team-tourn"]
[EventCountry "HUN"]
[SourceTitle "playchess.com"]
[Source "ChessBase"]
[SourceQuality "1"]
[WhiteTeam "Monaco"]
[BlackTeam "Canada"]
[WhiteTeamCountry "MNC"]
[BlackTeamCountry "CAN"]
[TimeControl "40/5400+30:1800+30"]

{[%evp 10,94,19,16,25,27,29,0,8,-11,-6,0,0,-47,-37,-36,-31,-35,-24,-43,-34,-35,-30,-53,0,0,0,0,104,0,0,0,0,0,1,0,0,0,0,0,0,0,0,0,0,0,14,-4,-3,-47,-34,-71,-77,-83,-65,-94,-38,-56,-31,-40,-41,-391,-366,-383,-356,-362,-379,-352,-340,-29966,-29966,-29976,-29977,-29977,-29978,-29978,-29979,-29980,-29981,-29981,-29982,-29982,-29983,-29985,-29986,-29986,-29982]} 1. e4 c6 2. d4 d5 3. exd5 cxd5 4. Bd3 Nc6 5. c3 Qc7 6. h3 e6 7. Nf3 Bd6 8. Be3 Bd7 {The position is equal.} 9. Nbd2 f5 {[#] aiming for ...f4.} 10. Nb3 Nf6 11. Qc2 (11. O-O $11) 11... Ne4 $15 12. a3 Ne7 13. a4 Ng6 14. a5 a6 15. O-O O-O 16. Rfe1 Nf4 (16... Rac8 $15) 17. Bxf4 $11 Bxf4 18. Ne5 Bb5 (18... Be8 $11 {remains equal.}) 19. f3 ({White has to play} 19. Bxb5 $16 axb5 20. Qe2) 19... Bxe5 20. dxe5 Bxd3 21. Qxd3 Nc5 22. Nxc5 Qxc5+ 23. Qd4 Qb5 {[%cal Oa8c8]} 24. Ra4 Rf7 {[%cal Oa8c8]} 25. Qb4 Rc7 26. Qxb5 axb5 {[%mdl 4096] Endgame. KRR-KRR} 27. Ra3 Rc6 28. Rd1 Rca6 29. Rd4 Rxa5 30. Rxa5 Rxa5 $15 {KR-KR} 31. Rb4 Kf7 32. Kf2 Ke7 ({Black should play} 32... g5 $17) 33. Ke3 Kd7 34. g4 $1 Ra4 {White must now prevent ...Rxb4.} 35. Rxb5 {[%mdl 8192] Loses the game.} (35. Rd4 $1 $15) 35... f4+ 36. Kd3 Kc6 37. Rb3 g5 38. Ke2 b5 39. Kd3 $2 {[#]} (39. Kd2 $19) 39... Kc5 {Black mates.} 40. Ra3 Rxa3 41. bxa3 {KP-KP} h6 42. Kc2 Kc4 43. Kb2 d4 44. cxd4 Kxd4 45. Kb3 Ke3 46. Kb4 Kxf3 47. Kxb5 Kg3 {Weighted Error Value: White=0.36/Black=0.12 (very precise) .  Loses game:     	White=1     	---        Mistake:       	White=3     	Black=3      Inaccurate:     	White=4     	---        OK:         	White=11    	Black=11     Best:        	---       	Black=4      Strong:       	White=1     	---} 0-1

[Event "45th FIDE Womens Olympiad 2024"]
[Site "Budapest"]
[Date "2024.09.15"]
[Round "5.99"]
[White "Pham, Bich Ngoc"]
[Black "Berezovsky, Fiorina"]
[Result "1-0"]
[ECO "D15"]
[WhiteElo "2199"]
[BlackElo "1976"]
[Annotator "TA"]
[PlyCount "48"]
[EventDate "2024.09.05"]
[EventType "team-tourn"]
[EventCountry "HUN"]
[SourceTitle "playchess.com"]
[Source "ChessBase"]
[SourceQuality "1"]
[WhiteTeam "Canada"]
[BlackTeam "Monaco"]
[WhiteTeamCountry "CAN"]
[BlackTeamCountry "MNC"]
[TimeControl "40/5400+30:1800+30"]

{[%evp 9,48,15,41,-5,57,-35,2,0,4,0,0,-14,-12,-7,-12,-18,16,3,7,2,0,-16,0,0,67,0,33,0,85,74,113,117,144,41,147,136,164,40,136,141,1110]} 1. Nf3 d5 2. d4 Nf6 3. g3 Bf5 4. c4 c6 5. Nc3 dxc4 6. Bg2 (6. Ne5 $1 $14) 6... e6 (6... Nbd7 $11) 7. Nh4 (7. Ne5 $14) 7... Bb4 8. Nxf5 {The position is equal.} exf5 9. O-O O-O 10. e3 Nbd7 11. Qc2 g6 12. Nb1 Qe7 13. Qxc4 Rac8 14. a3 Bd6 15. b4 Ne4 16. f3 Nef6 (16... Nxg3 $11 17. hxg3 Bxg3) 17. Nc3 (17. e4 $1 $14) 17... b5 18. Qd3 Nb6 (18... Bc7 $11 {remains equal.}) 19. e4 $16 {[%cal Be3e4,Be4f5][%mdl 32] aiming for e5.} Nh5 20. exf5 Rfd8 21. Be3 (21. Bh3 $16) 21... Nc4 ({Better is} 21... gxf5 $14 22. Rae1 Qf6) 22. Bf2 Ng7 23. Bh3 (23. fxg6 $18 hxg6 24. f4) 23... Qd7 (23... Nxf5 $14 24. Rfe1 Qd7) 24. Ne4 {[#] Hoping for Nf6+.} gxf5 $2 {[%mdl 8192] Weighted Error Value: White=0.35/Black=0.43.  Loses game:     	---       	Black=1      Mistake:       	White=4     	Black=5      Inaccurate:     	White=1     	Black=4      OK:         	White=8     	Black=4      Best:        	White=1     	---} ({Don't blunder} 24... Be7 $2 25. f6 Qxh3 26. fxe7 $18) (24... Kh8 $16) 1-0

[Event "45th FIDE Womens Olympiad 2024"]
[Site "Budapest"]
[Date "2024.09.15"]
[Round "5.100"]
[White "Berezovska, Svetlana"]
[Black "Demchenko, Svitlana"]
[Result "1/2-1/2"]
[ECO "B33"]
[WhiteElo "1869"]
[BlackElo "2167"]
[Annotator "TA"]
[PlyCount "140"]
[EventDate "2024.09.05"]
[EventType "team-tourn"]
[EventCountry "HUN"]
[SourceTitle "playchess.com"]
[Source "ChessBase"]
[SourceQuality "1"]
[WhiteTeam "Monaco"]
[BlackTeam "Canada"]
[WhiteTeamCountry "MNC"]
[BlackTeamCountry "CAN"]
[TimeControl "40/5400+30:1800+30"]

{[%evp 18,140,32,6,19,22,31,0,43,18,24,2,4,-33,0,-35,0,-7,0,0,0,-27,-29,-15,-31,-23,-18,-34,-3,-16,0,-3,-12,0,-11,-21,0,-19,-12,-71,-72,-154,46,47,75,74,108,95,97,90,106,99,116,86,29995,406,358,220,195,183,177,160,254,246,247,255,244,249,402,362,329,296,272,159,138,114,105,95,91,91,96,70,79,76,80,63,72,50,65,61,62,69,89,87,91,93,95,41,116,72,95,99,90,116,172,19,175,17,23,8,12,12,12,12,12,12,16,0,0,0,8,0,0,0,8]} 1. e4 c5 2. Nf3 Nc6 3. d4 cxd4 4. Nxd4 Qb6 5. Nb3 Nf6 6. Nc3 e6 7. Be3 Qc7 8. a3 a6 9. Be2 b5 {[%cal Bb7b5,Bb5b4][%mdl 32]} 10. O-O Be7 11. f4 d6 12. Qe1 Bb7 13. Qg3 O-O 14. Bd3 b4 15. Nd1 Rfd8 16. Nf2 Rac8 17. Rae1 bxa3 18. bxa3 e5 19. Ng4 Nxg4 20. Qxg4 exf4 21. Qxf4 Bf6 22. Qg3 Be5 23. Qh4 Qe7 24. Bg5 f6 25. Be3 Re8 26. Rf3 Nd8 27. Rh3 g6 28. Rf1 (28. Nd2 $11 {keeps the balance.}) 28... Ne6 $17 29. Na5 (29. Qf2 $142) 29... Nf8 $2 (29... Ng5 $17 30. Bxg5 fxg5) 30. Nc4 $14 Rc7 31. Nxe5 fxe5 32. Bg5 {White is much more active. This pair of bishops is nice.} Qd7 33. Rhf3 Ne6 {[%cal Bf8e6,Be6g7,Bg7f5][%mdl 32]} 34. Bh6 d5 {aiming for ...dxe4.} 35. Qf6 $40 {[%mdl 128] Black is in trouble.} Qe7 {[%mdl 8192] [#] Wards off Qf8+} (35... dxe4 36. Qf8+ Nxf8 37. Rxf8+ Rxf8 38. Rxf8#) (35... Nf4 $16) 36. Qxe5 (36. Qxe6+ $142 Kh8 37. Qxe5+ (37. exd5 Qxe6 38. dxe6 Bxf3 $18) (37. Qxe7 Rg8 38. Qxe5+ Rcg7 39. Bxg7+ Rxg7 40. Rf8#) 37... Kg8 38. Qxe7 Rcxe7 39. Rf8+ Rxf8 40. Rxf8#) 36... Ng7 $18 37. Qxe7 Rcxe7 {Black is weak on the dark squares} 38. exd5 Bxd5 39. Rf6 Be6 (39... Rc7 $16 40. R6f4 (40. Rxa6 Bc4 $18) 40... Rc6) 40. Bxa6 Nf5 41. Bg5 Rc7 42. g4 Nd4 {Prevents Bb5.} (42... Ng7 43. Bf4 Rf7) 43. Bh6 Rf7 44. Rxf7 Bxf7 45. c3 (45. a4 $18) 45... Ne2+ $16 46. Bxe2 Rxe2 {[%mdl 4096] Endgame. KRB-KRB} 47. Rd1 Be6 48. h3 Kf7 49. Bf4 Ra2 50. Bd6 Bb3 51. Rd3 Ke6 52. Rd4 Rc2 53. Bb4 Bd5 54. h4 h6 55. a4 Ke5 56. a5 Bf3 57. a6 (57. Bd6+ $16 Ke6 58. Bf8) 57... Ra2 (57... Rg2+ $1 $14 58. Kf1 Ra2) 58. Rd6 Kf4 {Strongly threatening ...Kg3.} 59. Rxg6 Kg3 {[%cal Ra2a1]} 60. Bd6+ (60. Rxh6 $2 Ra1#) 60... Kxh4 {[#]} (60... Kh3 $16) 61. Rxh6+ $2 (61. Bb8 $1 $18) 61... Kxg4 $2 (61... Kg5 $1 $11 {and Black is okay.} 62. Rh8 Kxg4) 62. Be5 $2 ({White should play} 62. Bc5 $18) 62... Be2 63. Rh2 {[%cal Oa6a7] Threatens to win with a7!} Ra1+ {The position is equal.} 64. Kf2 Bxa6 65. Ke3 Kf5 66. Rh5+ Ke6 67. Kd4 Rd1+ 68. Ke3 Re1+ 69. Kd4 {Rh6+ would now be deadly.} Rd1+ 70. Ke3 Re1+ {Black escapes into a draw.   Weighted Error Value: White=0.33/Black=0.27 (precise) .  Loses game:     	---       	Black=1      Mistake:       	White=7     	Black=6      Inaccurate:     	White=5     	Black=6      OK:         	White=19    	Black=23     Best:        	White=3     	Black=4} 1/2-1/2

[Event "45th FIDE Womens Olympiad 2024"]
[Site "Budapest"]
[Date "2024.09.15"]
[Round "5.101"]
[White "Perez Rodriguez, Jennifer"]
[Black "Unuk, Laura"]
[Result "0-1"]
[ECO "E12"]
[WhiteElo "2224"]
[BlackElo "2316"]
[Annotator "TA"]
[PlyCount "80"]
[EventDate "2024.09.05"]
[EventType "team-tourn"]
[EventCountry "HUN"]
[SourceTitle "playchess.com"]
[Source "ChessBase"]
[SourceQuality "1"]
[WhiteTeam "Paraguay"]
[BlackTeam "Slovenia"]
[WhiteTeamCountry "PAR"]
[BlackTeamCountry "SLO"]
[TimeControl "40/5400+30:1800+30"]

{[%evp 9,80,0,16,17,20,30,17,0,0,-1,0,0,-6,0,-8,-12,0,-13,0,-8,-8,-13,-11,-21,-15,-17,-7,-17,0,-20,-15,-15,-16,-75,-67,-76,0,0,0,-67,-67,-110,-143,-140,-77,-153,-156,-192,-183,-339,-338,-510,-523,-515,-528,-531,-525,-512,-528,-528,-521,-499,-492,-480,-467,-886,-877,-29986,-29987,-29997,-29998,-29998,-29999]} 1. d4 Nf6 2. c4 e6 3. Nf3 b6 4. a3 Bb7 5. Bf4 d5 6. cxd5 Nxd5 7. Bg3 Nd7 8. e3 {The position is equal.} c5 9. Bd3 Be7 10. O-O O-O 11. Nbd2 cxd4 12. Nxd4 Nc5 13. Bb5 (13. Bc2 $5) 13... Rc8 14. Rc1 a6 15. Be2 b5 16. Bf3 Qb6 17. Qc2 Rfd8 18. Qb1 h6 19. Rfd1 Bg5 {[%cal Od5e3] And now ...Nxe3! would win.} 20. Ne4 Nxe4 21. Qxe4 (21. Rxc8 $1 $11 {remains equal.} Rxc8 22. Bxe4) 21... Rxc1 $17 22. Rxc1 {[#]} Nxe3 23. Qxb7 $11 Qxd4 24. Rc8 (24. h4 $1 $11 Bf6 (24... Qxb2 25. Re1 $11) 25. Bc7 Qxb2 26. Re1) 24... Nf5 $1 $15 25. Rxd8+ Bxd8 26. Qc8 {Threatens to win with Bc7.} Kh7 ({Black should play} 26... Qd3 {( -> ...Qb1+)} 27. h3 Kh7 (27... Nxg3 28. fxg3 Qd4+ 29. Kh2 $17)) 27. Qc2 ({White should try} 27. Qc3) 27... Bf6 $40 {[%mdl 128] White is in trouble.} 28. Bb7 g6 (28... Qxb2 29. Qxb2 Bxb2 30. Bxa6 $16) 29. Bxa6 $2 (29. Qe2) 29... Qb6 $19 ({Stronger than} 29... Qxb2 30. Qxb2 Bxb2 31. Bc7 $15) 30. Bc8 (30. Qc7 {was forced.} Qxa6 31. Qxf7+ Bg7 32. Be5) 30... Nd4 31. Qc7 Ne2+ 32. Kf1 Nxg3+ 33. Qxg3 {[%mdl 4096] Endgame. KQB-KQB} Qc6 (33... Bxb2 $2 34. Qb3 $17) 34. Qf3 Qc1+ ({Not} 34... Qxc8 35. Qxf6 Qc4+ 36. Ke1 $11) 35. Ke2 Qxb2+ ({And not} 35... Bxb2 36. Qxf7+ Bg7 37. Bxe6 $11) 36. Kd1 Qb1+ 37. Ke2 (37. Kd2 $142 Bg5+ 38. Ke2 Qc2+ 39. Kf1 Qc4+ (39... Qxc8 $2 40. Qxf7+ Kh8 41. g3 $19) 40. Ke1 Qxc8 (40... Qc1+ $2 41. Ke2 $19) 41. Qxf7+ Kh8 42. g3) 37... Qc2+ 38. Ke1 Bc3+ {Black mates.} 39. Kf1 Qc1+ 40. Ke2 Qd2+ {Weighted Error Value: White=0.45/Black=0.06 (flawless) .  Mistake:       	White=6     	Black=2      Inaccurate:     	White=2     	---        OK:         	White=10    	Black=16     Best:        	White=3     	Black=5      Strong:       	---       	Black=1} 0-1

[Event "45th FIDE Womens Olympiad 2024"]
[Site "Budapest"]
[Date "2024.09.15"]
[Round "5.102"]
[White "Urh, Zala"]
[Black "Vargas, Gabriela"]
[Result "1-0"]
[ECO "D02"]
[WhiteElo "2251"]
[BlackElo "2109"]
[Annotator "TA"]
[PlyCount "129"]
[EventDate "2024.09.05"]
[EventType "team-tourn"]
[EventCountry "HUN"]
[SourceTitle "playchess.com"]
[Source "ChessBase"]
[SourceQuality "1"]
[WhiteTeam "Slovenia"]
[BlackTeam "Paraguay"]
[WhiteTeamCountry "SLO"]
[BlackTeamCountry "PAR"]
[TimeControl "40/5400+30:1800+30"]

{[%evp 37,129,-51,-47,-61,-33,-41,-23,-57,-71,-175,-160,-140,-8,-41,22,0,0,-24,0,-6,80,68,81,77,108,103,110,98,104,96,108,114,110,121,128,119,110,47,106,116,111,71,189,183,418,133,128,129,131,141,137,136,305,361,347,334,378,360,681,820,1041,1032,849,618,615,603,769,747,704,749,910,929,950,874,900,971,1040,1057,1030,1083,983,973,2214,2195,2639,2662,6070,5721,2748,2485,6398,5197,29967,2454]} 1. d4 d5 2. Bf4 e6 3. Nf3 Bd6 4. Bg3 Ne7 5. e3 c5 6. c3 {D02: 1 d4 d5 2 Nf3 sidelines, including 2...Nf6 3 g3 and 2...Nf6 3 Bf4.} Nbc6 7. Bd3 O-O 8. Nbd2 f6 9. dxc5 $146 ({Predecessor:} 9. O-O cxd4 10. exd4 e5 11. dxe5 fxe5 12. Be2 Nf5 13. Ne1 Bc5 14. Nd3 Nxg3 15. hxg3 {0-1 Kunze,K (1447)-Figa,K (1760) Bohumin op-B 7th 2024 (6)}) 9... Bxc5 10. Nb3 Bd6 11. e4 dxe4 12. Bxe4 e5 13. O-O Be6 14. Nfd2 Qc7 15. f3 Rad8 16. Qe2 f5 17. Bc2 Rfe8 18. Rfd1 Ng6 19. Kh1 Qf7 20. a4 Kh8 21. a5 a6 22. Ra4 Be7 23. Nc4 (23. Re1 $17) 23... Rxd1+ 24. Bxd1 {[#]} Bd5 (24... e4 $1 $17 {White must now prevent ...f4.} 25. fxe4 f4) 25. Nbd2 $11 Bf8 (25... Rd8 $15) 26. Nb6 Be6 27. Bc2 Rd8 28. Ndc4 f4 (28... Bc5 $11 {remains equal.}) 29. Bf2 $16 Bf5 30. Ra1 h6 31. Rd1 Rxd1+ 32. Qxd1 Kh7 33. h3 Be7 34. b4 Bxc2 35. Qxc2 Kh8 36. Qe4 Qe6 37. Qd5 (37. Nd5 $16) 37... Nf8 (37... Qxd5 $14 38. Nxd5 Bf8) 38. Qxe6 $16 Nxe6 39. Nd7 Bf6 (39... Kg8 $16) 40. Nd6 $18 Ncd8 $2 (40... Ned8 41. Nc5 Kg8) 41. Bb6 $2 (41. Nxf6 $18 {and the rest is easy.} gxf6 42. Bb6) 41... Be7 $16 42. Nc4 Nc6 43. Kg1 ({Resist} 43. Ncxe5 $6 Nxe5 44. Nxe5 Bf6 45. Nf7+ (45. Bd4 Nxd4 46. cxd4 g5 $16) 45... Kg8 $11) (43. Ndxe5 $6 Bf6 44. Nxc6 bxc6 $11) 43... Kg8 44. Kf2 (44. Ndxe5 Nxe5 45. Nxe5 Bf6 $16) 44... Bf6 $2 (44... Kf7 $16 {might work better.}) 45. Nd6 $18 Ned8 46. Nc5 Kf8 47. Ndxb7 e4 $2 (47... Nxb7 48. Nxb7 h5) 48. Nxd8 $18 e3+ 49. Ke2 Bxd8 50. Ne6+ Ke7 51. Nxf4 Kd6 52. Bxd8 Nxd8 53. Kxe3 g5 54. Ne2 Kd5 55. Kd3 Nc6 56. c4+ Ke5 57. Kc3 h5 58. Kb3 Kd6 59. Ng3 h4 60. Ne4+ Ke5 61. Nxg5 Nd4+ 62. Ka4 Kd6 63. b5 Kc5 64. bxa6 Nc6 65. Nf7 (65. Ne4+ $142 Kd4 66. Kb5 Na7+ 67. Kb6 Nc8+ 68. Kb7 Nd6+ 69. Nxd6 Ke3 70. a7) 1-0

[Event "45th FIDE Womens Olympiad 2024"]
[Site "Budapest"]
[Date "2024.09.15"]
[Round "5.103"]
[White "Montiel Caceres, Helen"]
[Black "Vidic, Teja"]
[Result "1/2-1/2"]
[ECO "D02"]
[WhiteElo "1864"]
[BlackElo "2128"]
[Annotator "NA RC"]
[PlyCount "68"]
[EventDate "2024.09.05"]
[EventType "team-tourn"]
[EventCountry "HUN"]
[SourceTitle "playchess.com"]
[Source "ChessBase"]
[SourceQuality "1"]
[WhiteTeam "Paraguay"]
[BlackTeam "Slovenia"]
[WhiteTeamCountry "PAR"]
[BlackTeamCountry "SLO"]
[TimeControl "40/5400+30:1800+30"]

1. d4 d5 2. Nf3 e6 3. Bf4 Bd6 4. e3 Nf6 5. Nbd2 O-O 6. c3 b6 7. h4 c5 8. h5 h6 9. Bxd6 Qxd6 10. Ne5 Nfd7 11. f4 f6 12. Ng6 Re8 13. Nf3 Ba6 14. Bxa6 Nxa6 15. Qe2 Nab8 16. e4 dxe4 17. Qxe4 Qd5 18. Qxd5 exd5+ 19. Kf2 Nc6 20. Rhe1 Kf7 21. Rad1 c4 22. Nfh4 Nf8 23. Nxf8 Kxf8 24. Nf5 Rad8 25. Re3 Rxe3 26. Nxe3 Ne7 27. Kf3 b5 28. a3 Kf7 29. g4 Rb8 30. Ra1 a5 31. Nc2 Nc8 32. Ne3 Ne7 33. Nc2 Nc8 34. Ne3 Ne7 1/2-1/2